bitfinex/quotes_ETHUSD_20240621
["timestamp","ask_amount","ask_price","bid_price","bid_amount"]
[1718941703594,0.55,3513.0,3511.9,5.265]
[1718941704511,1.04309007,3513.1,3512.0,2.4079]
[1718941704714,1.04309007,3513.1,3512.0,4.8994]
[1718941705013,1.04309007,3513.1,3512.1,3.0]
[1718941707526,0.55,3513.1,3512.1,3.0]
[1718941707756,1.0430988,3513.1,3512.1,4.52694]
[1718941709537,1.04307442,3513.1,3512.1,4.52694]
[1718941709696,0.49307442,3513.1,3512.2,2.3609]
[1718941709891,0.49307442,3513.6,3512.2,2.3609]
[1718941710094,0.49307442,3513.6,3512.1,4.52694]
[1718941710095,0.49307442,3513.6,3512.4,2.3609]
[1718941710335,2.3738,3514.2,3512.5,2.3609]
[1718941710850,0.49296744,3514.1,3512.6,2.3609]
[1718941711015,0.49296744,3514.1,3512.7,0.83609]
[1718941711222,0.49296744,3514.1,3512.7,3.83609]
[1718941712129,0.55,3514.0,3512.7,3.83609]
[1718941712304,0.55,3514.0,3512.8,2.2534]
[1718941712631,0.49296744,3514.1,3512.9,2.2911]
[1718941712934,0.49296744,3514.4,3513.0,0.612719]
[1718941713111,0.49296744,3514.4,3513.0,3.612719]
[1718941713504,3.9664,3514.5,3513.0,3.612719]
[1718941713701,0.49294099,3514.4,3513.0,3.612719]
[1718941713900,0.55,3514.3,3513.0,3.612719]
[1718941714117,0.45164,3514.3,3513.1,0.5903819]
[1718941714336,0.55,3514.2,3513.1,0.5903819]
[1718941716038,0.55,3514.2,3513.2,2.4472]
[1718941716207,0.55,3514.2,3513.2,5.4472]
[1718941719512,0.49290875,3514.4,3513.2,5.4472]
[1718941719711,0.49290875,3514.4,3513.3,0.60375819]
[1718941719926,2.3084,3514.8,3513.3,2.4636]
[1718941720141,0.49288199,3514.7,3513.3,2.4636]
[1718941721628,0.55,3514.6,3513.3,2.4636]
[1718941723236,4.0204,3514.8,3513.3,2.4636]
[1718941723237,1.04286367,3514.7,3513.3,2.4636]
[1718941723439,1.04286367,3514.7,3513.4,0.24636]
[1718941723641,1.04286367,3514.7,3513.4,3.24636]
[1718941725441,0.877,3514.5,3513.5,0.877]
[1718941727535,0.55,3514.4,3513.4,4.12336]
[1718941728111,0.877,3514.3,3513.4,4.12336]
[1718941728305,0.877,3514.3,3513.4,3.0]
[1718941728501,0.877,3514.3,3513.3,3.3406]
[1718941728708,0.877,3514.3,3513.4,3.0]
[1718941729628,0.877,3514.1,3513.3,2.4636]
[1718941729937,1.36993234,3514.1,3513.3,2.4636]
[1718941730437,1.36993373,3514.1,3513.3,2.4636]
[1718941730945,0.49293373,3514.1,3513.3,2.4636]
[1718941731241,0.877,3514.3,3513.3,3.97466]
[1718941731459,0.55,3514.2,3513.4,3.0]
[1718941731741,0.49293373,3514.4,3513.5,0.877]
[1718941731944,0.49293373,3514.7,3513.6,2.3835]
[1718941732107,0.55,3514.6,3513.6,5.3835]
[1718941732309,0.877,3514.5,3513.6,5.3835]
[1718941732507,1.04288872,3514.6,3513.6,5.3835]
[1718941732743,0.877,3514.5,3513.6,5.3835]
[1718941732944,1.23532065,3514.5,3513.6,5.3835]
[1718941735549,1.72820675,3514.5,3513.6,5.3835]
[1718941735720,1.23532065,3514.5,3513.6,5.3835]
[1718941738581,0.877,3515.1,3514.3,2.3861]
[1718941740549,1.04279693,3515.2,3514.3,2.3861]
[1718941740550,0.55,3515.2,3514.3,2.3861]
[1718941740784,1.91979693,3515.2,3514.3,2.3861]
[1718941740980,1.427,3515.2,3514.3,2.3861]
[1718941741159,1.68140394,3515.2,3514.3,2.3861]
[1718941741369,2.55840394,3515.2,3514.3,2.3861]
[1718941741579,2.06561255,3515.2,3514.3,2.3861]
[1718941741781,0.4927914,3515.1,3514.3,2.3861]
[1718941742376,0.5772804,3515.1,3514.3,2.3861]
[1718941742705,1.0700718,3515.1,3514.1,0.877]
[1718941743078,0.55,3515.0,3514.1,0.877]
[1718941744701,0.55,3515.0,3514.0,3.0]
[1718941744899,0.55,3515.0,3514.2,0.877]
[1718941746430,0.877,3514.8,3514.0,3.0]
[1718941746611,0.4928009,3514.8,3514.0,3.0]
[1718941747011,0.49282365,3514.8,3514.0,3.0]
[1718941750437,0.49283258,3514.8,3514.0,3.0]
[1718941751023,1.91983258,3514.7,3514.0,3.0]
[1718941751332,1.91983258,3514.7,3513.7,3.877]
[1718941751547,0.49283258,3514.6,3513.7,3.877]
[1718941751836,0.55,3514.5,3513.7,3.877]
[1718941752005,0.49283258,3514.7,3513.7,6.46489]
[1718941752205,0.49283258,3514.8,3514.1,0.877]
[1718941752429,1.36983258,3515.1,3514.1,3.877]
[1718941752748,1.76812707,3515.1,3514.1,3.877]
[1718941753247,0.49282816,3515.0,3514.1,3.877]
[1718941753539,0.877,3515.0,3514.1,3.0]
[1718941753838,0.877,3515.0,3514.0,5.3519]
[1718941754029,0.877,3515.0,3514.1,0.877]
[1718941754329,1.95122043,3515.0,3514.1,3.0]
[1718941755227,1.95122043,3515.0,3513.8,3.877]
[1718941755228,0.877,3514.8,3513.8,3.877]
[1718941755405,2.8122,3514.7,3513.8,3.0]
[1718941755605,1.13723098,3514.6,3513.7,3.1441]
[1718941755800,1.13723098,3514.6,3513.8,3.0]
[1718941756105,1.13723098,3514.6,3513.6,3.0]
[1718941756106,0.55,3514.5,3513.6,3.0]
[1718941756304,0.877,3514.4,3513.6,3.0]
[1718941756544,2.9813,3514.3,3513.6,3.0]
[1718941756745,0.49291252,3514.2,3513.6,3.0]
[1718941759268,2.9813,3514.3,3513.6,3.0]
[1718941759476,0.49290904,3514.2,3513.6,3.0]
[1718941759837,0.49291007,3514.2,3513.6,3.0]
[1718941760032,0.92803108,3514.2,3513.6,3.0]
[1718941760482,0.43512101,3514.2,3513.6,3.0]
[1718941760676,0.92805278,3514.2,3513.6,3.0]
[1718941762466,0.92803699,3514.2,3513.6,3.0]
[1718941765558,0.43512101,3514.2,3513.6,3.0]
[1718941765870,0.4293421,3514.1,3513.6,3.0]
[1718941766957,0.49293985,3514.2,3513.7,0.877]
[1718941767159,0.49293985,3514.5,3513.9,0.877]
[1718941767383,0.49293985,3514.8,3513.9,0.877]
[1718941767670,2.3604,3515.3,3514.0,3.2552]
[1718941767837,2.3604,3515.3,3514.1,3.0]
[1718941767838,0.49293985,3515.2,3514.1,3.0]
[1718941768468,0.49293985,3515.2,3514.3,0.877]
[1718941768670,4.0724,3515.3,3514.3,0.877]
[1718941768874,0.49277825,3515.2,3514.3,0.877]
[1718941769257,0.49277825,3515.2,3514.1,3.0]
[1718941769463,0.49277825,3515.2,3514.2,0.877]
[1718941770038,0.55,3515.1,3514.2,0.877]
[1718941775076,1.04278118,3515.2,3514.2,0.877]
[1718941775350,1.04278038,3515.2,3514.2,0.877]
[1718941776191,1.04277918,3515.2,3514.2,0.877]
[1718941776486,1.04277918,3515.2,3514.3,0.679302]
[1718941778456,1.04277918,3515.2,3514.2,0.877]
[1718941779577,0.55,3515.2,3514.2,0.877]
[1718941779800,1.04278304,3515.2,3514.2,0.877]
[1718941784496,0.55,3515.2,3514.2,0.877]
[1718941784699,1.0427811,3515.2,3514.2,0.877]
[1718941785002,1.64199921,3515.2,3514.2,0.877]
[1718941787601,1.14921811,3515.2,3514.2,0.877]
[1718941787831,1.64199907,3515.2,3514.2,0.877]
[1718941790867,1.64199834,3515.2,3514.2,0.877]
[1718941791273,1.14921811,3515.2,3514.2,0.877]
[1718941791500,1.64199904,3515.2,3514.2,0.877]
[1718941791706,1.64199904,3515.2,3514.1,3.0]
[1718941791707,2.392,3515.0,3514.1,3.0]
[1718941791885,1.91978093,3514.9,3513.9,0.877]
[1718941792095,0.49283323,3514.8,3514.2,3.0]
[1718941792382,0.49283323,3514.8,3513.6,3.0]
[1718941792383,0.877,3514.5,3513.6,3.0]
[1718941792583,2.3923,3514.4,3513.6,3.0]
[1718941792792,0.49283323,3514.3,3513.6,3.0]
[1718941794123,0.49288215,3514.3,3513.6,3.0]
[1718941794602,0.55,3514.2,3513.6,3.0]
[1718941794814,2.2734,3514.1,3513.6,3.0]
[1718941794998,0.49288215,3514.0,3513.6,3.0]
[1718941796176,0.49288215,3514.0,3513.2,3.877]
[1718941796785,0.49288215,3514.0,3513.2,3.0]
[1718941796973,0.49293613,3514.0,3513.2,3.0]
[1718941797488,2.2692,3513.8,3513.2,3.0]
[1718941797693,1.04293613,3513.7,3513.2,3.0]
[1718941798108,1.04293613,3513.7,3512.9,3.877]
[1718941799212,1.04293613,3513.7,3512.9,3.0]
[1718941799396,1.04293613,3513.7,3512.9,3.877]
[1718941800125,1.04299267,3513.7,3512.9,4.45944953]
[1718941800693,1.04299267,3513.7,3512.9,3.0]
[1718941800999,2.2692,3513.6,3512.9,3.0]
[1718941801203,1.04299267,3513.5,3512.9,3.0]
[1718941802235,2.323,3513.4,3512.9,3.0]
[1718941802432,2.323,3513.4,3512.5,3.877]
[1718941802433,1.04304005,3513.3,3512.5,3.877]
[1718941802598,1.04304005,3513.3,3512.5,5.0705784]
[1718941803638,0.49304005,3513.3,3512.9,0.877]
[1718941805535,0.49300754,3513.3,3512.9,0.877]
[1718941805739,0.98601516,3513.3,3512.9,0.877]
[1718941806031,0.9860144,3513.3,3512.9,0.877]
[1718941806237,0.49300757,3513.3,3512.9,0.877]
[1718941806998,0.49300757,3513.3,3513.0,0.33092]
[1718941808304,0.49300757,3513.3,3512.9,0.877]
[1718941812428,0.49300757,3513.3,3512.8,3.0]
[1718941812630,0.49300757,3513.3,3512.8,0.877]
[1718941812835,0.49300757,3513.3,3512.8,3.877]
[1718941814110,0.49300757,3513.3,3512.8,3.0]
[1718941814306,2.2709,3513.2,3512.5,4.1935784]
[1718941814548,2.2709,3513.2,3512.7,0.877]
[1718941815441,0.49302143,3513.1,3512.7,0.877]
[1718941815812,0.49302171,3513.1,3512.7,0.877]
[1718941816013,2.2709,3513.2,3512.7,0.877]
[1718941816446,0.49302003,3513.1,3512.7,0.877]
[1718941817749,2.2709,3513.2,3512.7,0.877]
[1718941818045,0.49301969,3513.1,3512.7,0.877]
[1718941820046,0.49301969,3513.1,3512.7,2.12422362]
[1718941820251,0.49301969,3513.1,3512.9,0.877]
[1718941820546,2.3588,3513.6,3512.9,3.2642]
[1718941820547,0.49301969,3513.5,3512.9,3.2642]
[1718941820748,0.49301969,3513.5,3513.1,0.877]
[1718941820957,0.4929763,3513.5,3513.1,1.32343252]
[1718941821156,0.49297527,3513.5,3513.1,1.32343252]
[1718941821355,2.3588,3513.6,3513.1,1.32343252]
[1718941821719,0.49297495,3513.5,3513.1,1.32343252]
[1718941822233,0.49297119,3513.5,3513.1,1.32343252]
[1718941823166,0.49297119,3513.5,3513.0,3.0]
[1718941823369,0.49297119,3513.5,3512.7,2.12422362]
[1718941824152,0.49298014,3513.5,3512.7,2.12422362]
[1718941824336,0.49298014,3513.5,3512.7,1.24722362]
[1718941824640,0.49298014,3513.4,3512.5,3.877]
[1718941824846,2.3588,3513.6,3512.5,3.877]
[1718941824847,0.49298014,3513.5,3512.5,3.877]
[1718941825163,2.85178014,3513.4,3512.5,3.877]
[1718941825361,0.49298014,3513.3,3512.5,3.877]
[1718941825520,0.49298014,3513.3,3512.5,5.0017]
[1718941827120,0.49302189,3513.3,3512.5,5.0017]
[1718941829359,0.49302189,3513.2,3512.5,5.0017]
[1718941829565,0.49302189,3513.3,3512.5,5.0017]
[1718941829760,0.49302189,3513.2,3512.5,5.0017]
[1718941829960,0.49302189,3513.3,3512.6,1.23717]
[1718941830259,2.3588,3513.4,3512.6,2.11417]
[1718941830465,0.49302821,3513.3,3512.6,2.11417]
[1718941830663,0.49302821,3513.2,3512.6,2.11417]
[1718941830983,0.49302821,3513.3,3512.6,2.11417]
[1718941831145,0.49302821,3513.2,3512.6,2.11417]
[1718941831472,0.49302821,3513.3,3512.6,2.11417]
[1718941831761,0.49302821,3513.2,3512.6,2.11417]
[1718941831979,0.49302821,3513.3,3512.6,2.11417]
[1718941832461,0.49302821,3513.3,3512.7,1.248417]
[1718941833326,2.3588,3513.4,3512.7,1.248417]
[1718941833524,0.49302043,3513.3,3512.7,1.248417]
[1718941834822,0.49302043,3513.3,3513.0,0.877]
[1718941835025,0.49302043,3513.9,3513.3,2.4625]
[1718941835263,2.2556,3514.3,3513.6,0.877]
[1718941835264,0.49302043,3513.8,3513.6,0.877]
[1718941835561,0.49302043,3514.2,3513.6,0.877]
[1718941835757,0.49302043,3514.1,3513.6,0.877]
[1718941835945,0.49302043,3514.2,3513.6,0.877]
[1718941836150,0.49302043,3514.1,3513.6,0.877]
[1718941836460,2.2556,3514.3,3513.6,0.877]
[1718941836461,2.2556,3514.3,3513.6,1.544345]
[1718941836648,0.49290713,3514.2,3513.6,1.544345]
[1718941836825,2.2556,3514.3,3513.6,1.544345]
[1718941837027,0.49291199,3514.2,3513.6,1.544345]
[1718941837228,0.49291199,3514.2,3513.8,0.877]
[1718941837425,0.49291199,3514.6,3513.9,0.1544345]
[1718941837625,0.49284732,3514.6,3513.8,0.877]
[1718941839838,0.49283672,3514.6,3513.8,0.877]
[1718941840543,0.49283672,3514.6,3513.6,0.667345]
[1718941840727,0.49283672,3514.6,3513.8,0.877]
[1718941840925,0.49283672,3514.6,3513.8,1.0314345]
[1718941842040,0.49283672,3514.6,3514.2,0.877]
[1718941842243,0.2854,3515.5,3514.5,0.877]
[1718941842244,0.49283672,3515.0,3514.5,0.877]
[1718941842546,0.877,3515.5,3514.5,0.877]
[1718941842547,2.3395,3515.4,3514.5,0.877]
[1718941842739,0.49277382,3515.3,3514.5,0.877]
[1718941842929,0.49277382,3515.3,3514.4,0.877]
[1718941845732,3.53815,3515.4,3514.4,0.877]
[1718941845937,0.49277769,3515.3,3514.4,0.877]
[1718941846168,0.877,3515.0,3514.2,3.0]
[1718941846343,0.55,3514.9,3514.2,3.0]
[1718941849368,0.55,3515.0,3514.2,3.0]
[1718941849578,0.55,3515.0,3514.2,3.877]
[1718941849786,0.55,3515.0,3514.3,1.1247]
[1718941850541,0.49281409,3515.1,3514.3,1.1247]
[1718941850542,0.49281409,3515.1,3514.6,0.877]
[1718941850765,3.2315,3515.6,3514.6,0.877]
[1718941851078,0.49281409,3515.5,3514.6,3.0]
[1718941851259,0.49281409,3515.5,3514.6,1.53476]
[1718941851443,0.49281409,3515.5,3514.6,4.53476]
[1718941851971,0.55,3515.4,3514.6,4.53476]
[1718941852447,1.04273325,3515.5,3514.6,4.53476]
[1718941852774,1.04273325,3515.5,3514.6,3.65776]
[1718941852975,1.04273325,3515.5,3514.7,0.877]
[1718941853175,1.04273331,3515.5,3514.7,0.877]
[1718941854583,2.06950315,3515.4,3514.7,0.877]
[1718941854787,0.49273331,3515.3,3514.7,0.877]
[1718941855180,2.06950332,3515.2,3514.7,0.877]
[1718941855476,2.06950332,3515.1,3514.7,0.877]
[1718941855677,9.25798613,3517.3,3516.0,1.15792752]
[1718941855678,0.57051022,3516.1,3516.0,1.15792752]
[1718941855876,6.589,3516.1,3516.0,1.15792752]
[1718941856080,9.15117717,3516.1,3516.0,1.15792752]
[1718941856379,10.06629489,3516.1,3516.0,1.15792752]
[1718941857672,10.61629489,3516.1,3516.0,1.15792752]
[1718941858055,10.12356851,3516.1,3516.0,1.15792752]
[1718941858255,10.61631673,3516.1,3516.0,1.15792752]
[1718941858790,12.90491673,3516.1,3516.0,1.15792752]
[1718941860996,12.90478545,3516.1,3516.0,1.15792752]
[1718941862084,12.02778545,3516.1,3516.0,1.15792752]
[1718941862254,12.90478545,3516.1,3516.0,1.15792752]
[1718941863760,12.90478518,3516.1,3516.0,1.15792752]
[1718941863967,12.90478508,3516.1,3516.0,1.15792752]
[1718941864171,8.41208406,3516.1,3516.0,1.15792752]
[1718941864385,8.90479033,3516.1,3516.0,1.15792752]
[1718941864567,8.90479033,3516.1,3516.0,0.79375752]
[1718941864792,8.9050052,3516.1,3516.0,0.79375752]
[1718941864993,14.1341512,3516.1,3516.0,0.79375752]
[1718941865309,2.3716,3516.0,3514.9,3.0]
[1718941865510,0.877,3515.2,3514.9,3.0]
[1718941865724,0.877,3515.2,3512.5,0.75]
[1718941865725,2.589,3515.0,3514.5,3.0]
[1718941865862,2.56228748,3514.9,3514.1,2.4636]
[1718941866065,0.49274759,3514.8,3514.1,2.4636]
[1718941866307,0.877,3515.0,3513.9,0.877]
[1718941866601,0.877,3514.6,3513.7,7.37]
[1718941867163,0.877,3514.8,3513.7,7.37]
[1718941867405,2.06999282,3514.7,3513.7,7.37]
[1718941867607,0.49286161,3514.6,3513.7,9.65667]
[1718941867904,0.49286161,3514.6,3513.8,3.0]
[1718941868100,1.36986161,3514.8,3513.8,3.0]
[1718941868264,2.0699901,3514.7,3513.8,3.0]
[1718941868465,0.49286161,3514.6,3513.8,3.0]
[1718941868969,1.63065525,3514.8,3513.8,3.0]
[1718941869168,2.06998932,3514.7,3513.8,3.0]
[1718941869372,0.49286161,3514.6,3513.8,3.0]
[1718941869573,0.49286161,3514.6,3514.0,0.877]
[1718941869800,0.877,3515.0,3514.0,3.877]
[1718941870104,2.06989898,3514.9,3514.0,3.877]
[1718941870305,0.49283396,3514.8,3514.0,3.0]
[1718941870504,0.49283396,3514.8,3514.1,0.877]
[1718941870715,0.877,3515.0,3514.1,0.877]
[1718941870858,2.06989027,3514.9,3514.1,0.877]
[1718941871064,0.49283396,3514.8,3514.1,3.877]
[1718941871263,2.06989128,3514.7,3514.1,0.877]
[1718941871563,0.49283396,3514.6,3514.1,1.39616428]
[1718941871902,0.49283396,3514.6,3514.1,3.51916428]
[1718941872106,0.877,3515.0,3514.1,3.51916428]
[1718941872285,1.36983396,3515.0,3514.1,3.0]
[1718941872491,0.877,3515.0,3514.0,2.19164281]
[1718941872684,1.36983396,3515.0,3514.0,2.19164281]
[1718941873027,0.877,3515.0,3514.0,2.19164281]
[1718941873539,1.36984645,3515.0,3514.0,2.19164281]
[1718941873691,0.49284645,3515.1,3514.2,0.877]
[1718941873884,0.877,3515.2,3514.2,3.877]
[1718941874286,0.877,3515.2,3514.2,3.0]
[1718941874480,0.877,3515.2,3514.2,3.877]
[1718941874721,0.877,3515.2,3514.3,0.79872071]
[1718941875836,0.877,3515.2,3514.2,3.0]
[1718941875837,0.49284645,3515.2,3514.2,3.0]
[1718941876134,1.427,3515.1,3514.1,2.2764]
[1718941876319,0.877,3515.1,3514.1,2.2764]
[1718941876641,0.877,3515.1,3514.1,3.1534]
[1718941876943,0.877,3515.1,3514.2,3.61534]
[1718941877116,0.877,3515.1,3514.2,3.0]
[1718941877497,0.49279973,3515.3,3514.3,0.877]
[1718941877698,0.29034033,3515.4,3514.3,0.877]
[1718941877699,1.66014006,3515.4,3514.3,0.877]
[1718941877904,1.66011105,3515.4,3514.3,1.49234]
[1718941878431,1.36977072,3515.4,3514.3,0.61534]
[1718941878735,1.36977072,3515.4,3514.3,1.49234]
[1718941879520,1.36977072,3515.4,3514.3,0.61534]
[1718941879727,2.4867,3515.5,3514.2,3.877]
[1718941879728,0.877,3515.2,3514.2,3.877]
[1718941881421,0.49278742,3515.4,3514.2,3.877]
[1718941881600,0.877,3515.2,3514.2,3.877]
[1718941883845,0.877,3515.0,3514.2,3.0]
[1718941884143,0.877,3515.0,3514.1,5.2764]
[1718941884144,1.06897876,3515.0,3514.1,5.2764]
[1718941884505,1.06897876,3515.0,3514.2,3.0]
[1718941884938,1.06897876,3515.0,3514.1,2.2764]
[1718941885133,0.877,3515.0,3514.1,2.2764]
[1718941889011,0.49283042,3515.1,3514.2,2.3282]
[1718941889246,0.49273928,3515.8,3514.9,0.877]
[1718941889446,6.3315,3515.9,3514.9,0.877]
[1718941889447,1.26286321,3515.7,3514.9,3.877]
[1718941889628,0.77012393,3515.7,3514.9,3.877]
[1718941890211,0.77012393,3515.7,3514.9,3.0]
[1718941890425,0.77012393,3515.7,3514.8,5.3282]
[1718941891846,2.3315,3515.5,3514.6,3.0]
[1718941892050,0.49273928,3515.4,3514.2,2.3282]
[1718941892239,2.3315,3515.5,3514.2,2.3282]
[1718941892425,0.49279858,3515.4,3514.2,2.3282]
[1718941892626,0.36199493,3515.4,3514.3,0.23282]
[1718941892937,0.49279825,3515.3,3514.3,3.23282]
[1718941893322,0.49279854,3515.3,3514.3,3.23282]
[1718941893546,0.49279854,3515.2,3514.3,3.23282]
[1718941893746,0.49279854,3515.3,3514.3,3.23282]
[1718941894051,0.49279854,3515.3,3514.4,0.556102]
[1718941894215,0.49279854,3515.4,3514.4,0.556102]
[1718941895349,2.3315,3515.5,3514.4,0.556102]
[1718941895553,0.49275646,3515.4,3514.4,0.556102]
[1718941895756,0.49275646,3515.4,3514.3,3.23282]
[1718941895757,0.49275646,3515.4,3514.5,0.6117122]
[1718941897857,0.49275646,3515.3,3514.5,0.6117122]
[1718941898051,0.49275646,3515.4,3514.5,0.6117122]
[1718941898355,2.3315,3515.5,3514.5,0.6117122]
[1718941898356,0.49275646,3515.3,3514.5,0.6117122]
[1718941898659,0.49276751,3515.4,3514.5,0.6117122]
[1718941898956,0.49276751,3515.3,3514.5,0.6117122]
[1718941899268,0.49276751,3515.4,3514.5,0.6117122]
[1718941899425,0.49276751,3515.3,3514.5,0.6117122]
[1718941899626,0.49276751,3515.4,3514.5,0.6117122]
[1718941899826,0.49276751,3515.3,3514.5,0.6117122]
[1718941900157,0.4927661,3515.4,3514.5,0.6117122]
[1718941900455,0.4927661,3515.3,3514.5,0.6117122]
[1718941900660,0.4927661,3515.4,3514.5,0.6117122]
[1718941900849,0.4927661,3515.3,3514.5,0.6117122]
[1718941901360,0.4927661,3515.2,3514.5,0.6117122]
[1718941901562,0.31124161,3515.4,3514.3,3.23282]
[1718941901754,0.49278094,3515.3,3514.3,3.23282]
[1718941901933,0.49278094,3515.2,3514.3,3.23282]
[1718941902138,0.49278094,3515.4,3514.3,3.23282]
[1718941902342,0.49278094,3515.3,3514.4,0.37058539]
[1718941902551,0.49278094,3515.4,3514.4,0.37058539]
[1718941902746,0.49278094,3515.3,3514.4,0.37058539]
[1718941902927,0.49278094,3515.4,3514.4,0.37058539]
[1718941903129,0.49278094,3515.3,3514.4,0.37058539]
[1718941903461,0.49278094,3515.2,3514.4,0.37058539]
[1718941903765,0.72593094,3515.4,3514.4,0.37058539]
[1718941904064,0.49278094,3515.3,3514.3,3.0]
[1718941904265,3.38928094,3515.2,3514.2,3.0]
[1718941904556,0.49278094,3515.1,3514.2,3.0]
[1718941904759,3.38938269,3515.0,3514.2,3.0]
[1718941904962,0.49288269,3514.9,3514.2,3.0]
[1718941905270,0.77682096,3514.8,3513.8,3.0]
[1718941905432,0.49288269,3514.7,3513.8,3.0]
[1718941905766,0.28393827,3514.8,3513.8,3.0]
[1718941905767,0.49288269,3514.6,3513.8,3.0]
[1718941905926,0.49288269,3514.5,3513.8,3.0]
[1718941906127,0.49288269,3514.4,3513.8,3.0]
[1718941906438,0.49288269,3514.6,3513.8,3.0]
[1718941906762,3.34698269,3514.5,3513.8,3.0]
[1718941907066,0.49288269,3514.4,3513.8,3.0]
[1718941907359,0.49288269,3514.3,3513.8,3.0]
[1718941907545,0.49288269,3514.4,3513.8,3.0]
[1718941907747,2.8541,3514.5,3513.8,3.0]
[1718941907748,0.33469827,3514.3,3513.8,3.0]
[1718941909754,0.33469827,3514.3,3513.4,3.0]
[1718941910166,0.33469827,3514.3,3513.1,5.4887]
[1718941914379,0.49292592,3514.4,3513.1,5.4887]
[1718941915579,1.36992592,3514.4,3513.3,0.877]
[1718941917268,1.3699317,3514.4,3513.3,0.877]
[1718941918307,0.877,3514.3,3513.3,0.877]
[1718941923186,0.877,3513.9,3513.2,3.0]
[1718941923385,0.877,3513.9,3512.9,0.877]
[1718941923574,0.877,3513.9,3512.8,5.4381]
[1718941923780,0.877,3513.7,3512.8,5.4381]
[1718941923967,1.3699348,3513.7,3512.8,3.0]
[1718941924169,1.3699348,3513.7,3512.8,4.36851]
[1718941924487,0.4929348,3513.7,3512.8,4.36851]
[1718941924889,0.4929348,3513.7,3512.9,0.877]
[1718941925283,0.4929348,3513.7,3512.8,5.24551]
[1718941925895,3.3685,3513.8,3512.8,5.24551]
[1718941926199,0.49297058,3513.7,3512.9,1.261551]
[1718941926504,0.49297043,3513.7,3512.9,1.261551]
[1718941927067,0.49297043,3513.7,3512.8,3.0]
[1718941929076,0.49300707,3513.7,3512.8,3.0]
[1718941929496,0.49300707,3513.7,3512.8,3.877]
[1718941930104,0.49300707,3513.7,3512.8,3.0]
[1718941930290,0.49300707,3513.7,3512.8,3.877]
[1718941930606,0.49300707,3513.7,3512.9,2.4782]
[1718941930904,0.877,3513.8,3512.8,3.877]
[1718941931108,2.2625,3513.7,3512.8,3.877]
[1718941931298,0.49300707,3513.6,3512.9,1.37252]
[1718941932101,2.2625,3513.7,3512.9,1.37252]
[1718941932415,2.56362795,3513.6,3512.9,1.37252]
[1718941932722,0.4930052,3513.5,3512.9,1.37252]
[1718941933012,0.4930052,3513.6,3512.9,1.37252]
[1718941934310,0.4930052,3513.6,3513.0,0.28595419]
[1718941935410,0.4930052,3513.6,3512.8,3.0]
[1718941935411,1.37000582,3513.6,3512.8,3.0]
[1718941935611,0.49300582,3513.5,3512.8,3.0]
[1718941935817,2.282,3513.3,3512.8,3.0]
[1718941935984,0.49302056,3513.2,3512.8,3.0]
[1718941936311,0.877,3513.2,3512.8,3.0]
[1718941936509,1.37006955,3513.2,3512.9,3.0]
[1718941936826,1.73527651,3513.2,3512.4,3.0]
[1718941937407,0.877,3513.0,3512.4,3.0]
[1718941937608,0.877,3513.0,3512.0,3.0]
[1718941937817,0.85827651,3513.2,3512.0,3.0]
[1718941938019,0.877,3513.1,3512.1,0.62687]
[1718941938889,0.877,3513.1,3512.1,1.50387]
[1718941939501,0.877,3513.1,3512.1,0.62687]
[1718941941076,0.877,3513.1,3512.0,3.0]
[1718941941077,2.282,3513.0,3512.0,3.0]
[1718941941281,0.877,3512.6,3511.6,3.0]
[1718941941705,2.4389,3512.5,3511.6,3.0]
[1718941941909,0.49313952,3512.4,3511.6,5.59187]
[1718941942508,0.49313952,3512.4,3511.6,3.0]
[1718941943539,0.49313952,3512.4,3511.5,2.3917]
[1718941943735,0.49313952,3512.4,3511.5,3.2687]
[1718941943881,0.49313952,3512.4,3511.6,3.0]
[1718941944344,2.4389,3512.5,3511.6,3.0]
[1718941944525,2.4389,3512.5,3511.6,3.62687]
[1718941944526,0.49316198,3512.4,3511.6,3.62687]
[1718941947213,0.877,3512.2,3511.6,3.0]
[1718941947408,1.37020378,3512.2,3511.2,3.0]
[1718941947630,0.877,3512.0,3511.2,3.0]
[1718941947918,1.37020378,3512.0,3511.2,3.0]
[1718941948086,1.37020378,3512.0,3511.2,4.1247]
[1718941949522,0.49320378,3512.0,3511.2,4.1247]
[1718941950427,2.3204,3512.1,3511.2,4.1247]
[1718941950599,0.49322105,3512.0,3511.3,0.877]
[1718941950806,2.3204,3512.1,3511.4,1.23717]
[1718941951003,0.49322194,3512.0,3511.4,1.23717]
[1718941953609,2.3204,3512.1,3511.4,1.23717]
[1718941953806,0.4932348,3512.0,3511.2,4.1247]
[1718941954340,1.3702348,3512.0,3511.2,4.1247]
[1718941955822,0.877,3511.8,3511.2,4.1247]
[1718941956028,1.3702348,3511.8,3511.2,3.0]
[1718941956812,0.877,3511.8,3511.2,3.0]
[1718941957016,1.37025907,3511.8,3511.2,3.0]
[1718941957233,1.37025907,3511.8,3510.8,3.877]
[1718941957438,1.37025907,3511.8,3510.9,2.0527]
[1718941957634,1.37025907,3511.8,3510.9,3.0]
[1718941958136,1.37025907,3511.8,3510.8,0.877]
[1718941958933,0.49325907,3511.8,3510.8,0.877]
[1718941959143,0.49325907,3511.8,3510.7,3.0]
[1718941959312,0.49325907,3511.8,3510.9,0.877]
[1718941960037,0.49324869,3511.8,3510.9,0.877]
[1718941960207,0.49324873,3511.8,3511.0,0.3877]
[1718941960818,1.37024873,3511.8,3511.0,0.3877]